bitfinex/quotes_BTCUSD_20251114
["timestamp","ask_amount","ask_price","bid_price","bid_amount"]
[1763107856253,0.323,97037.0,97032.0,0.06014]
[1763107857115,0.323,97040.0,97032.0,0.06014]
[1763107857325,0.001,97034.0,97030.0,0.00999999]
[1763107857530,0.001,97034.0,97030.0,0.37199703]
[1763107858020,0.001,97034.0,97033.0,0.23532544]
[1763107858349,0.001,97040.0,97033.0,0.02921]
[1763107858549,0.001,97040.0,97034.0,0.26625332]
[1763107858751,0.001,97037.0,97034.0,0.26625332]
[1763107858958,0.001,97037.0,97033.0,0.02921]
[1763107858959,0.001,97037.0,97035.0,0.06014]
[1763107859194,0.001,97037.0,97033.0,0.02921]
[1763107859195,0.001,97034.0,97033.0,0.02921]
[1763107860175,0.001,97034.0,97033.0,0.08935]
[1763107860513,0.001,97034.0,97033.0,0.02921]
[1763107861315,0.001,97034.0,97033.0,0.23532544]
[1763107861596,0.002,97034.0,97033.0,0.23532544]
[1763107861714,0.002,97034.0,97033.0,0.30474098]
[1763107862195,0.002,97034.0,97033.0,0.23532544]
[1763107862698,0.002,97034.0,97033.0,0.02921]
[1763107864046,0.002,97034.0,97033.0,0.23532544]
[1763107864282,0.002,97034.0,97033.0,0.02921]
[1763107866871,0.001,97034.0,97033.0,0.02921]
[1763107867033,0.001,97034.0,97033.0,0.10323809]
[1763107867214,0.001,97034.0,97033.0,0.02921]
[1763107867790,0.0017962,97051.0,97050.0,0.20607934]
[1763107867996,0.02083363,97051.0,97050.0,0.06523]
[1763107868177,0.02083363,97051.0,97050.0,0.02655]
[1763107868915,0.02083363,97051.0,97050.0,0.10030181]
[1763107869123,0.02083363,97051.0,97050.0,0.02655]
[1763107869556,0.02083363,97051.0,97050.0,0.23262934]
[1763107869770,0.02083363,97051.0,97050.0,0.02655]
[1763107869980,0.02183363,97051.0,97050.0,0.23262934]
[1763107870564,0.02083363,97051.0,97050.0,0.23262934]
[1763107871503,0.02083363,97051.0,97050.0,0.02655]
[1763107871708,0.02083363,97051.0,97033.0,0.02921]
[1763107871909,0.01903743,97050.0,97043.0,0.0927123]
[1763107872215,0.01903743,97049.0,97043.0,0.0927123]
[1763107872422,0.01903743,97048.0,97044.0,0.05442]
[1763107872625,0.3257962,97051.0,97044.0,0.05442]
[1763107872626,0.01903743,97047.0,97044.0,0.05442]
[1763107872825,0.01903743,97046.0,97044.0,0.05442]
[1763107873045,0.01903743,97045.0,97044.0,0.05442]
[1763107873264,0.01903743,97045.0,97044.0,0.26051208]
[1763107873666,0.0017962,97051.0,97050.0,0.20607934]
[1763107873891,0.02086404,97051.0,97050.0,0.28261785]
[1763107874317,0.02086404,97051.0,97050.0,0.20607934]
[1763107875374,0.35982601,97078.0,97069.0,0.0927123]
[1763107875375,0.02197174,97077.0,97069.0,0.0927123]
[1763107875577,0.323,97075.0,97069.0,0.03868]
[1763107875737,0.0315077,97074.0,97067.0,0.20604317]
[1763107875930,0.323,97075.0,97069.0,0.06523]
[1763107876133,0.323,97075.0,97069.0,0.02655]
[1763107876890,0.323,97080.0,97069.0,0.02655]
[1763107877090,0.0012,97070.0,97069.0,0.09101818]
[1763107877279,0.0012,97070.0,97069.0,0.02655]
[1763107878125,0.0022,97070.0,97069.0,0.02655]
[1763107878335,0.0012,97070.0,97069.0,0.02655]
[1763107878447,0.0022,97070.0,97069.0,0.02655]
[1763107878657,0.0022,97070.0,97069.0,0.12410096]
[1763107879065,0.0002,97070.0,97069.0,0.1675197]
[1763107879822,0.02194359,97111.0,97106.0,0.2059587]
[1763107880024,0.00951753,97110.0,97109.0,0.02655]
[1763107880564,0.02717511,97128.0,97120.0,0.00999999]
[1763107880846,0.00950958,97127.0,97122.0,0.0927123]
[1763107881055,0.00950958,97126.0,97125.0,0.20591905]
[1763107881257,0.00950958,97126.0,97122.0,0.0927123]
[1763107881258,0.00950958,97126.0,97124.0,0.20592232]
[1763107881409,0.02191128,97140.0,97124.0,0.20592232]
[1763107881410,0.00950958,97125.0,97124.0,0.20592232]
[1763107881605,0.00950958,97125.0,97124.0,0.29723372]
[1763107882031,0.00950958,97125.0,97124.0,0.0913114]
[1763107882243,0.00950958,97125.0,97118.0,0.02655]
[1763107882447,0.001,97126.0,97118.0,0.02655]
[1763107882678,0.002,97125.0,97120.0,0.00999999]
[1763107882814,0.002,97125.0,97122.0,0.0927123]
[1763107883010,0.323,97124.0,97122.0,0.0927123]
[1763107883235,0.20592086,97125.0,97122.0,0.0927123]
[1763107883236,0.52892444,97123.0,97122.0,0.0927123]
[1763107883436,0.20593292,97119.0,97118.0,0.02655]
[1763107883872,0.20593139,97120.0,97118.0,0.02655]
[1763107884087,0.323,97123.0,97118.0,0.02655]
[1763107884308,0.323,97123.0,97122.0,0.0927123]
[1763107884708,0.02717511,97144.0,97122.0,0.0927123]
[1763107884709,0.31721431,97141.0,97131.0,0.06523]
[1763107884909,0.20587037,97149.0,97131.0,0.06523]
[1763107884910,0.02717511,97149.0,97143.0,0.03868]
[1763107885115,0.00948792,97148.0,97140.0,0.00999999]
[1763107885320,0.00948792,97147.0,97141.0,0.26030628]
[1763107885561,0.0002,97150.0,97149.0,0.03868]
[1763107885754,0.0002,97150.0,97144.0,0.20587948]
[1763107885755,0.02186194,97162.0,97150.0,0.03868]
[1763107885957,0.01026632,97174.0,97150.0,0.03868]
[1763107885958,0.0094843,97159.0,97150.0,0.03868]
[1763107886182,0.02186194,97171.0,97142.0,0.05442]
[1763107886183,0.20586644,97151.0,97142.0,0.05442]
[1763107886383,0.20586636,97151.0,97142.0,0.05442]
[1763107886609,0.0024561,97143.0,97142.0,0.05442]
[1763107886809,0.0024561,97143.0,97142.0,0.22159739]
[1763107888120,0.0034561,97143.0,97142.0,0.22159739]
[1763107888349,0.0024561,97143.0,97142.0,0.22159739]
[1763107888751,0.0044561,97143.0,97142.0,0.26501613]
[1763107889158,0.0034561,97143.0,97142.0,0.26501613]
[1763107889332,0.0024561,97143.0,97142.0,0.26501613]
[1763107889964,0.0024561,97143.0,97142.0,0.2493029]
[1763107891344,0.0024561,97143.0,97142.0,0.20788416]
[1763107891737,0.0024561,97143.0,97142.0,0.001]
[1763107891914,0.0024561,97143.0,97141.0,0.0927123]
[1763107892124,0.20587244,97148.0,97141.0,0.0927123]
[1763107892326,0.20587244,97148.0,97147.0,0.03463]
[1763107892547,0.20587244,97148.0,97142.0,0.05597]
[1763107892548,0.20588205,97143.0,97142.0,0.05597]
[1763107892747,0.20586881,97150.0,97142.0,0.05597]
[1763107892990,0.2058777,97146.0,97142.0,0.05597]
[1763107893184,0.20588092,97144.0,97142.0,0.05597]
[1763107893388,0.20587302,97148.0,97142.0,0.05597]
[1763107893528,0.20587302,97148.0,97142.0,0.05497]
[1763107893732,0.20587911,97145.0,97142.0,0.05497]
[1763107893980,0.001,97143.0,97142.0,0.05497]
[1763107894217,0.20587815,97145.0,97142.0,0.05497]
[1763107894328,0.20587102,97149.0,97142.0,0.05497]
[1763107894532,0.20587579,97146.0,97142.0,0.05497]
[1763107894737,0.001,97148.0,97142.0,0.05497]
[1763107894956,0.20585929,97154.0,97142.0,0.05497]
[1763107895286,0.20585873,97154.0,97153.0,0.03463]
[1763107896531,0.20587781,97145.0,97144.0,0.05497]
[1763107897324,0.20587346,97148.0,97144.0,0.05497]
[1763107897517,0.20587712,97146.0,97144.0,0.05497]
[1763107897730,0.00250944,97145.0,97144.0,0.05497]
[1763107898132,0.52888416,97142.0,97141.0,0.0927123]
[1763107898539,0.20590112,97134.0,97133.0,0.05497]
[1763107898970,0.323,97142.0,97133.0,0.05497]
[1763107899123,0.323,97142.0,97141.0,0.0927123]
[1763107899483,0.323,97142.0,97141.0,0.1273423]
[1763107899708,0.001,97145.0,97142.0,0.05497]
[1763107900137,0.0002,97160.0,97152.0,0.20586101]
[1763107900138,0.3232,97160.0,97152.0,0.20586101]
[1763107900338,0.3232,97160.0,97159.0,0.03463]
[1763107900540,0.3232,97160.0,97153.0,0.05497]
[1763107900905,0.323,97158.0,97153.0,0.05497]
[1763107901996,0.323,97158.0,97153.0,0.05597]
[1763107902305,0.0002,97160.0,97153.0,0.05497]
[1763107902534,0.002,97158.0,97153.0,0.05497]
[1763107902772,0.20585873,97154.0,97151.0,0.02619]
[1763107902972,0.002,97158.0,97151.0,0.02619]
[1763107903191,0.38219702,97200.0,97152.0,0.09838874]
[1763107903192,0.0002,97180.0,97152.0,0.09838874]
[1763107903419,0.0002,97180.0,97179.0,0.06082]
[1763107903638,0.0002,97180.0,97160.0,0.23203596]
[1763107903639,0.0002,97180.0,97175.0,0.02619]
[1763107903865,0.20581213,97176.0,97175.0,0.02619]
[1763107904080,0.20581213,97176.0,97170.0,0.00999999]
[1763107904081,0.20582272,97171.0,97170.0,0.00999999]
[1763107904370,0.20582014,97173.0,97165.0,0.0927123]
[1763107904371,0.20583211,97167.0,97165.0,0.0927123]
[1763107904795,0.20583211,97167.0,97151.0,0.02619]
[1763107904796,0.20586297,97152.0,97151.0,0.02619]
[1763107905019,0.20585668,97155.0,97151.0,0.02619]
[1763107905225,0.38548721,97180.0,97160.0,0.00999999]
[1763107905226,0.5288439,97161.0,97160.0,0.00999999]
[1763107905426,0.20586297,97152.0,97151.0,0.02619]
[1763107905641,0.20586039,97154.0,97151.0,0.02619]
[1763107905862,0.20586297,97152.0,97151.0,0.02619]
[1763107906070,0.323,97162.0,97160.0,0.03463]
[1763107906270,0.5288439,97161.0,97160.0,0.03463]
[1763107906431,0.323,97161.0,97160.0,0.03463]
[1763107907102,0.323,97160.0,97159.0,0.0927123]
[1763107908393,0.002,97160.0,97159.0,0.0927123]
[1763107908609,0.325,97160.0,97159.0,0.0927123]
[1763107909015,0.325,97160.0,97151.0,0.02619]
[1763107909016,0.20585873,97154.0,97151.0,0.02619]
[1763107909167,0.20585662,97155.0,97151.0,0.02619]
[1763107909369,0.20585873,97154.0,97151.0,0.02619]
[1763107909810,0.20585026,97158.0,97151.0,0.02619]
[1763107909989,0.20586147,97153.0,97151.0,0.02619]
[1763107910191,0.324,97160.0,97151.0,0.02619]
[1763107910396,0.00269612,97152.0,97151.0,0.02619]
[1763107910775,0.00269612,97152.0,97151.0,0.08116]
[1763107911176,0.00269612,97152.0,97151.0,0.02619]
[1763107912286,0.00369612,97152.0,97151.0,0.02619]
[1763107913099,0.00469612,97152.0,97151.0,0.02619]
[1763107913310,0.00369612,97152.0,97151.0,0.02619]
[1763107913518,0.00269612,97152.0,97151.0,0.02619]
[1763107913720,0.00369612,97152.0,97151.0,0.10592682]
[1763107914039,0.00369612,97152.0,97151.0,0.14934556]
[1763107914238,0.00269612,97152.0,97151.0,0.14934556]
[1763107916671,0.0002,97180.0,97179.0,0.20580578]
[1763107916873,0.0002,97180.0,97179.0,0.35933808]
[1763107917094,0.0002,97180.0,97179.0,0.32470808]
[1763107917792,0.0002,97180.0,97179.0,0.23199578]
[1763107917940,0.0022,97180.0,97179.0,0.02619]
[1763107918391,0.0022,97180.0,97179.0,0.06415781]
[1763107918592,0.0022,97180.0,97179.0,0.02619]
[1763107918792,0.20581229,97176.0,97174.0,0.02619]
[1763107918996,0.0022,97180.0,97175.0,0.0927123]
[1763107919298,0.0032,97180.0,97175.0,0.0927123]
[1763107919494,0.0022,97180.0,97175.0,0.0927123]
[1763107919725,0.3252,97180.0,97176.0,0.20581213]
[1763107919929,0.3242,97180.0,97175.0,0.0927123]
[1763107920051,0.3242,97180.0,97177.0,0.20580805]
[1763107920052,0.3232,97180.0,97177.0,0.20580805]
[1763107920255,0.3242,97180.0,97179.0,0.20580578]
[1763107920481,0.3252,97180.0,97179.0,0.20580578]
[1763107920772,0.0012,97180.0,97179.0,0.20580578]
[1763107921183,0.0012,97180.0,97179.0,0.25885739]
[1763107921406,0.0022,97180.0,97179.0,0.20580578]
[1763107921766,0.0012,97180.0,97175.0,0.0927123]
[1763107921967,0.0002,97180.0,97177.0,0.20580953]
[1763107922214,0.00194683,97180.0,97175.0,0.0927123]
[1763107922362,0.0012,97180.0,97178.0,0.20580715]
[1763107922562,0.0002,97180.0,97178.0,0.20580715]
[1763107922962,0.00072017,97179.0,97176.0,0.05216]
[1763107923173,0.52881001,97177.0,97176.0,0.11542906]
[1763107923365,0.323,97178.0,97174.0,0.02619]
[1763107923585,0.323,97178.0,97177.0,0.0927123]
[1763107923785,0.3236935,97178.0,97174.0,0.02619]
[1763107924000,0.3236935,97178.0,97177.0,0.0927123]
[1763107924201,0.52950139,97178.0,97177.0,0.0927123]
[1763107924556,0.0006935,97178.0,97177.0,0.29852231]
[1763107924708,0.0016935,97178.0,97177.0,0.33868307]
[1763107925537,0.0016935,97178.0,97177.0,0.29852231]
[1763107926360,0.0026935,97178.0,97177.0,0.29852231]
[1763107927841,0.0026935,97178.0,97177.0,0.0927123]
[1763107928062,0.0026935,97178.0,97139.0,0.41177726]
[1763107928063,0.323,97174.0,97159.0,0.12477572]
[1763107928271,0.323,97174.0,97150.0,0.75280734]
[1763107928272,0.2058439,97161.0,97151.0,0.07467]
[1763107928478,0.002,97178.0,97151.0,0.02619]
[1763107928687,0.20586095,97153.0,97150.0,0.0026]
[1763107929092,0.323,97154.0,97150.0,0.0026]
[1763107929572,0.20586085,97153.0,97150.0,0.0026]
[1763107930217,0.323,97156.0,97150.0,0.06107999]
[1763107930341,0.20586509,97151.0,97150.0,0.01259999]
[1763107930543,0.20586509,97151.0,97150.0,0.0026]
[1763107931935,0.52886509,97151.0,97150.0,0.0026]
[1763107932142,0.323,97151.0,97150.0,0.0026]
[1763107934043,0.0002401,97161.0,97159.0,0.03165]
[1763107934251,0.0002401,97161.0,97160.0,0.1243623]
[1763107934460,0.0002401,97161.0,97160.0,0.04848]
[1763107934692,0.0002401,97161.0,97157.0,0.02415]
[1763107934916,0.0002401,97161.0,97160.0,0.29855832]
[1763107935130,0.0002401,97161.0,97160.0,0.33020832]
[1763107935602,0.0002401,97161.0,97160.0,0.29855832]
[1763107935784,0.0002401,97161.0,97160.0,0.0927123]
[1763107936204,0.0002401,97161.0,97157.0,0.02415]
[1763107936424,0.20585026,97158.0,97157.0,0.02415]
[1763107937601,0.20685026,97158.0,97157.0,0.02415]
[1763107937820,0.001,97158.0,97157.0,0.02415]
[1763107938190,0.001,97158.0,97150.0,0.0026]
[1763107938191,0.52886509,97151.0,97150.0,0.0026]
[1763107938419,0.323,97151.0,97150.0,0.0026]
[1763107938622,0.52886509,97151.0,97150.0,0.0026]
[1763107940487,0.52886509,97151.0,97150.0,0.0036]
[1763107941042,0.52886509,97151.0,97150.0,0.0046]
[1763107952386,0.57228383,97151.0,97150.0,0.001]
[1763107952591,0.20595413,97109.0,97102.0,0.04976]
[1763107954375,0.20595413,97109.0,97101.0,0.0017941]
[1763107954376,0.52896898,97102.0,97101.0,0.0017941]
[1763107955652,0.52896898,97102.0,97101.0,0.0027941]
[1763107962327,0.52896898,97102.0,97101.0,0.0017941]
[1763107962527,0.52896898,97102.0,97074.0,0.02398]
[1763107962528,0.52899231,97091.0,97080.0,0.00999999]
[1763107962669,0.2059711,97101.0,97080.0,0.00999999]
[1763107962670,0.52901353,97081.0,97080.0,0.00999999]
[1763107962856,0.52902414,97076.0,97075.0,0.04976]
[1763107963452,0.323,97080.0,97075.0,0.04976]
[1763107963659,0.52901565,97080.0,97079.0,0.0927123]
[1763107963881,0.20602414,97076.0,97075.0,0.04976]
[1763107964297,0.20602414,97076.0,97074.0,0.02398]
[1763107964532,0.20702414,97076.0,97074.0,0.02398]
[1763107965112,0.20602414,97076.0,97074.0,0.02398]
[1763107965325,0.20702414,97076.0,97074.0,0.02398]
[1763107966070,0.20802414,97076.0,97074.0,0.02398]
[1763107966551,0.002,97076.0,97075.0,0.04976]
[1763107967514,0.001,97076.0,97075.0,0.04976]
[1763107967762,0.002,97076.0,97075.0,0.04976]
[1763107968154,0.001,97076.0,97075.0,0.04976]
[1763107968523,0.002,97076.0,97075.0,0.04976]
[1763107971005,0.20602626,97075.0,97074.0,0.02398]
[1763107972555,0.20702626,97075.0,97074.0,0.02398]
[1763107972924,0.20702626,97075.0,97071.0,0.02398]
[1763107972925,0.20603263,97072.0,97071.0,0.02398]
[1763107973131,0.20603263,97072.0,97061.0,0.0927123]
[1763107973132,0.20604749,97065.0,97064.0,0.02398]
[1763107974179,0.20606235,97058.0,97054.0,0.04976]
[1763107974458,0.20607721,97051.0,97050.0,0.0004]
[1763107974663,0.52907721,97051.0,97050.0,0.0004]
[1763107977135,0.53107721,97051.0,97050.0,0.0004]
[1763107981852,0.57449595,97051.0,97050.0,0.0004]
[1763107982113,0.20616006,97012.0,97011.0,0.02133]
[1763107982444,0.20615684,97014.0,97011.0,0.02133]
[1763107982645,0.20615684,97014.0,97013.0,0.0927123]
[1763107983689,0.20615684,97014.0,97011.0,0.02133]
[1763107983690,0.20616006,97012.0,97011.0,0.02133]
[1763107984073,0.323,97021.0,97011.0,0.02133]
[1763107984076,0.01030502,97040.0,97020.0,0.04098999]
[1763107984281,1.03026066,97063.0,97030.0,0.00999999]
[1763107984282,0.20611332,97034.0,97030.0,0.00999999]
[1763107984563,0.20611969,97031.0,97030.0,0.00999999]
[1763107984745,0.20616006,97012.0,97011.0,0.02133]
[1763107985152,0.001,97012.0,97011.0,0.02133]
[1763107985516,0.001,97012.0,97011.0,0.06708]
[1763107985923,0.002,97012.0,97011.0,0.02133]
[1763107986274,0.001,97012.0,97011.0,0.02133]
[1763107986476,0.001,97012.0,97011.0,0.06708]
[1763107987000,0.002,97012.0,97011.0,0.02133]
[1763107987698,0.002,97012.0,97011.0,0.06402]
[1763107987891,0.002,97012.0,97011.0,0.07982223]
[1763107988090,0.002,97012.0,97011.0,0.03713223]
[1763107988450,0.001,97012.0,97011.0,0.03713223]
[1763107989102,0.20613048,97026.0,97020.0,0.00999999]
[1763107989309,0.20613048,97026.0,97025.0,0.0927123]
[1763107989487,0.20612009,97031.0,97025.0,0.0927123]
[1763107989488,0.20612833,97027.0,97025.0,0.0927123]
[1763107989664,0.20612833,97027.0,97025.0,0.1354023]
[1763107990078,0.323,97055.0,97034.0,0.02818]
[1763107990311,0.52909845,97041.0,97040.0,0.02818]
[1763107991501,0.52909845,97041.0,97040.0,0.07087]
[1763107991709,0.01024393,97054.0,97040.0,0.06268999]
[1763107991710,0.20608047,97050.0,97040.0,0.06268999]
[1763107991908,0.20608047,97050.0,97049.0,0.1424723]
[1763107992110,0.52908047,97050.0,97049.0,0.1424723]
[1763107992786,0.52908047,97050.0,97049.0,0.04976]
[1763107995200,0.20610482,97038.0,97037.0,0.02158]
[1763107996422,0.20810482,97038.0,97037.0,0.02158]
[1763107996621,0.20710482,97038.0,97037.0,0.02158]
[1763107997058,0.20810482,97038.0,97037.0,0.02158]
[1763107997607,0.20710482,97038.0,97037.0,0.02158]
[1763107997945,0.20810482,97038.0,97037.0,0.02158]
[1763107998564,0.20611969,97031.0,97025.0,0.0927123]
[1763107998952,0.323,97036.0,97030.0,0.00999999]
[1763107999271,0.323,97036.0,97035.0,0.04976]
[1763107999616,0.52910907,97036.0,97035.0,0.04976]
[1763107999814,0.323,97036.0,97035.0,0.04976]
[1763108000015,0.323,97039.0,97035.0,0.09245]
[1763108000159,0.20710907,97036.0,97035.0,0.09245]
[1763108000365,0.20610907,97036.0,97035.0,0.04976]
[1763108000778,0.20710907,97036.0,97035.0,0.04976]
[1763108002604,0.20810907,97036.0,97035.0,0.04976]
[1763108006674,0.20810907,97036.0,97025.0,0.0927123]
[1763108006675,0.20611969,97031.0,97025.0,0.0927123]
[1763108006854,0.20613031,97026.0,97025.0,0.0927123]
[1763108008184,0.20613031,97026.0,97020.0,0.03157999]
[1763108008185,0.20614093,97021.0,97020.0,0.02158]
[1763108009062,0.20614093,97021.0,97010.0,0.02158]
[1763108009063,0.20616218,97011.0,97010.0,0.02158]
[1763108009829,0.20616218,97011.0,97010.0,0.07426999]
[1763108010010,0.20616218,97011.0,97010.0,0.06427]
[1763108010213,0.20716218,97011.0,97010.0,0.06427]
[1763108010416,0.20616218,97011.0,97010.0,0.02158]
[1763108010848,0.20716218,97011.0,97010.0,0.02158]
[1763108011256,0.20816218,97011.0,97000.0,0.06177]
[1763108011453,0.20816218,97011.0,97003.0,0.02011]
[1763108011454,0.20616856,97008.0,97003.0,0.02011]
[1763108011647,0.20617873,97004.0,97003.0,0.02011]
[1763108012635,0.20617281,97006.0,97003.0,0.02011]
[1763108012848,0.20617706,97004.0,97003.0,0.02011]
[1763108013068,0.20717706,97004.0,97003.0,0.02011]
[1763108013694,0.20618344,97001.0,97000.0,0.0004]
[1763108015635,0.52918344,97001.0,97000.0,0.0004]
[1763108019511,0.54929344,97001.0,97000.0,0.0004]
[1763108021371,0.59271218,97001.0,97000.0,0.0004]
[1763108022379,0.54929344,97001.0,97000.0,0.0004]
[1763108023453,0.52918344,97001.0,97000.0,0.0004]
[1763108024795,0.23468936,97001.0,97000.0,0.0004]
[1763108025111,0.22518739,97001.0,97000.0,0.0004]
[1763108025457,0.20618344,97001.0,97000.0,0.0004]
[1763108029865,0.22514355,97001.0,97000.0,0.0004]
[1763108030547,0.54814355,97001.0,97000.0,0.0004]
[1763108031516,0.55761985,97001.0,97000.0,0.0004]
[1763108031699,0.54814355,97001.0,97000.0,0.0004]
[1763108031905,0.55761995,97001.0,97000.0,0.0004]
[1763108037169,0.55761995,97001.0,96977.0,0.02011]
[1763108037170,0.20623234,96978.0,96977.0,0.02011]
[1763108038283,0.20624297,96973.0,96972.0,0.02011]
[1763108039595,0.20824297,96973.0,96972.0,0.02011]
[1763108040147,0.002,96973.0,96972.0,0.02011]
[1763108040840,0.002,96973.0,96972.0,0.2263551]
[1763108040970,0.002,96973.0,96972.0,0.02011]
[1763108041174,0.001,96973.0,96972.0,0.2263551]
[1763108041485,0.323,96990.0,96981.0,0.02591]
[1763108041713,0.41235645,97004.0,96981.0,0.02591]
[1763108041714,0.01895983,96989.0,96986.0,0.20621292]
[1763108041911,0.20616643,97010.0,97009.0,0.04591]
[1763108042076,0.23461171,97010.0,97009.0,0.04591]
[1763108042273,0.02844528,97010.0,97009.0,0.04591]
[1763108042568,0.02844528,97010.0,97009.0,0.22616643]
[1763108042961,0.02844528,97010.0,97009.0,0.27821303]
[1763108043104,0.01896352,97010.0,97009.0,0.27821303]
[1763108043509,0.01896352,97010.0,97009.0,0.40298875]
[1763108043781,0.02185401,97042.0,97038.0,0.20610477]
[1763108043962,0.26130379,97057.0,97030.0,0.00999999]
[1763108043963,0.21558735,97041.0,97040.0,0.02]
[1763108044288,0.20610479,97039.0,97030.0,0.01999999]
[1763108044499,0.03134291,97038.0,97031.0,0.20611969]
[1763108044698,0.0094889,97037.0,97031.0,0.03952]
[1763108044900,0.03134291,97037.0,97032.0,0.03952]
[1763108045129,0.0094889,97036.0,97032.0,0.03952]
[1763108045283,0.0094889,97036.0,97034.0,0.20611289]
[1763108045449,0.0094889,97035.0,97034.0,0.20611289]
[1763108045648,0.323,97043.0,97035.0,0.03952]
[1763108045868,0.03134741,97042.0,97037.0,0.20610674]
[1763108046072,0.0094934,97041.0,97036.0,0.20610702]
[1763108046283,0.02740846,97053.0,97051.0,0.20607721]
[1763108046504,0.02740846,97065.0,97060.0,0.00999999]
[1763108046709,0.02740846,97067.0,97060.0,0.00999999]
[1763108046925,0.02740846,97068.0,97061.0,0.22766246]
[1763108047147,0.02740846,97070.0,97063.0,0.2060497]
[1763108047370,0.206039,97069.0,97061.0,0.02160648]
[1763108047577,0.20603318,97072.0,97061.0,0.02160648]
[1763108047797,0.20603475,97071.0,97070.0,0.02]
[1763108048683,0.20603475,97071.0,97060.0,0.00999999]
[1763108048684,0.2060387,97070.0,97060.0,0.00999999]
[1763108048928,0.20604152,97068.0,97060.0,0.02999999]
[1763108049148,0.01972,97061.0,97060.0,0.02]
[1763108049365,0.01972,97061.0,97040.0,0.01030502]
[1763108049366,0.04843,97061.0,97052.0,0.0927123]
[1763108049616,0.20607293,97054.0,97052.0,0.0927123]
[1763108049840,0.02871,97053.0,97052.0,0.0927123]
[1763108050679,0.20607293,97054.0,97052.0,0.0927123]
[1763108051336,0.001,97053.0,97052.0,0.0927123]
[1763108051537,0.20607293,97054.0,97052.0,0.0927123]
[1763108051875,0.20609845,97041.0,97040.0,0.02]
[1763108052648,0.23480845,97041.0,97040.0,0.02]
[1763108052790,0.01972,97042.0,97040.0,0.02]
[1763108052994,0.20609431,97043.0,97040.0,0.02]
[1763108053217,0.20609788,97042.0,97040.0,0.02]
[1763108053825,0.20609431,97043.0,97040.0,0.02]
[1763108054024,0.001,97041.0,97040.0,0.02]
[1763108054453,0.01972,97050.0,97040.0,0.02999999]
[1763108054681,0.01972,97050.0,97044.0,0.0927123]
[1763108055051,0.22579958,97050.0,97044.0,0.0927123]
[1763108055263,0.20608653,97047.0,97044.0,0.0927123]
[1763108055430,0.20608861,97046.0,97044.0,0.0927123]
[1763108056082,0.20608861,97046.0,97029.0,0.29883608]
[1763108056083,0.20611658,97033.0,97029.0,0.0927123]
[1763108056288,0.20611969,97031.0,97030.0,0.02]
[1763108056487,0.20611834,97032.0,97030.0,0.02]
[1763108056847,0.01972,97031.0,97030.0,0.02]
[1763108057049,0.20611834,97032.0,97030.0,0.02]
[1763108057873,0.20610987,97036.0,97031.0,0.01127123]
[1763108058072,0.2061061,97038.0,97031.0,0.01127123]
[1763108058268,0.002,97032.0,97031.0,0.01127123]
[1763108058806,0.20611969,97031.0,97029.0,0.0927123]
[1763108059037,0.001,97032.0,97030.0,0.02]
[1763108059942,0.001,97036.0,97030.0,0.22612132]
[1763108060164,0.20610403,97039.0,97033.0,0.20611459]
[1763108060320,0.20610588,97038.0,97033.0,0.20611459]
[1763108060524,0.001,97032.0,97029.0,0.0927123]
[1763108060705,0.001,97032.0,97030.0,0.22612112]
[1763108060926,0.001,97032.0,97030.0,0.20612112]
[1763108061133,0.20609845,97041.0,97040.0,0.02]
[1763108062198,0.2060942,97043.0,97040.0,0.02]
[1763108062394,0.20609685,97042.0,97040.0,0.02]
[1763108065807,0.02871,97041.0,97040.0,0.02]
[1763108066032,0.23480845,97041.0,97040.0,0.02]
[1763108066443,0.20612181,97030.0,97020.0,0.02]
[1763108066649,0.02871,97021.0,97002.0,0.0927123]
[1763108066800,0.20617661,97005.0,97002.0,0.0927123]
[1763108067224,0.2061775,97004.0,97002.0,0.0927123]
[1763108067632,0.20617919,97003.0,97002.0,0.0927123]
[1763108067785,0.001,97005.0,97002.0,0.0927123]
[1763108067989,0.001,97005.0,97003.0,0.21744945]
[1763108068456,0.20613485,97024.0,97012.0,0.20615798]
[1763108068637,0.20613485,97024.0,97010.0,0.02999999]
[1763108068638,0.20614441,97020.0,97019.0,0.0927123]
[1763108069343,0.20616063,97012.0,97010.0,0.02]
[1763108069872,0.20613881,97022.0,97010.0,0.02999999]
[1763108070090,0.20616218,97011.0,97010.0,0.02999999]
[1763108070292,0.20615979,97013.0,97010.0,0.02]
[1763108070491,0.00552691,97055.0,97050.0,0.00999999]
[1763108070718,0.02073,97121.0,97110.0,0.01999998]
[1763108070921,0.20594989,97111.0,97110.0,0.02]
[1763108071086,0.25635097,97111.0,97110.0,0.02]
[1763108071251,0.25635097,97111.0,97100.0,0.01999998]
[1763108071252,0.07561108,97111.0,97100.0,0.01999998]
[1763108071451,0.06701555,97110.0,97100.0,0.00999999]
[1763108071650,0.20597061,97102.0,97100.0,0.00999999]
[1763108071908,0.05371555,97101.0,97100.0,0.00999999]
[1763108072047,0.0442137,97101.0,97100.0,0.00999999]
[1763108072676,0.20599231,97091.0,97090.0,0.02999999]
[1763108072882,0.0190037,97091.0,97090.0,0.02999999]
[1763108073682,0.20599185,97092.0,97090.0,0.02999999]
[1763108074013,0.001,97091.0,97090.0,0.02999999]
[1763108074684,0.002,97091.0,97090.0,0.02999999]
[1763108077528,0.20799231,97091.0,97090.0,0.02999999]
[1763108079438,0.20799231,97091.0,97090.0,0.04227122]
[1763108079638,0.20799231,97091.0,97090.0,0.02999999]
[1763108080830,0.20600504,97085.0,97084.0,0.0927123]
[1763108081029,0.23121504,97085.0,97084.0,0.0927123]
[1763108081244,0.23121504,97085.0,97070.0,0.5562472]
[1763108081245,0.20601565,97080.0,97070.0,0.5562472]
[1763108081449,0.20603475,97071.0,97070.0,0.56624721]
[1763108081628,0.20603475,97071.0,97070.0,0.02]
[1763108082032,0.20603475,97071.0,97063.0,0.0927123]
[1763108082033,0.20604961,97064.0,97063.0,0.0927123]
[1763108082656,0.02521,97064.0,97063.0,0.0927123]
[1763108082857,0.20604937,97065.0,97063.0,0.0927123]
[1763108083656,0.002,97064.0,97063.0,0.0927123]
[1763108084088,0.02521,97064.0,97063.0,0.0927123]
[1763108085733,0.02521,97064.0,97042.0,0.0369813]